Workbook

Sheet Sheet1
A1: Minimum Distance from Point to Parabola
B3: This DIGMath module lets you investigate
B4: the calculus problem of finding
B5: the point on the parabola y = x2
B6: that is closest to a given point (a, b).
A9: The particular point is at (a, b).
A10: What is a (from -3 to 3)?
D11: 3 | E11: =(D11-3)/1 -> 0 | F11: = a
A13: What is b (from -5 to 10)?
D14: 13 | E14: =(D14-5)/1 -> 8 | F14: = b
A18: Click each item below for suggestions and investigations
C19: Item 1
C20: Item 2
C21: Item 3
K23: Select a point x0 on the parabola (-4 to 4): | O23: =-4+N24*dx -> 2.688 | P23: = x0
N24: 209
A25: To access/download all the DIGMath Apps for Calculus
A26: Click this link: | C26: DIGMath for Calculus | K26: The corresponding height on the parabola = | O26: =x0^2 -> 7.2
A28: Created by: Sheldon P. Gordon | L28: The distance to the point is D = | O28: =Sheet2!I17 -> 2.8
A29: Farmingdale State College
A30: Development of this module was supported by the | L30: The value of the derivative is D' = | O30: =Sheet2!I25 -> -0.5278300132
A31: NSF's Division of Undergraduate Education
A32: under grants DUE-0310123 and DUE-0442160. | L32: The formula for the distance function is:

Sheet Sheet2
B1: x | C1: y | D1: Dist L | E1: Deriv | G1: xMin = | H1: -4
G2: xMax = | H2: 4
A3: 0 | B3: =xMin -> -4.0 | C3: =x^2 -> 16 | D3: =SQRT((x-a)^2+(x^2-b)^2) -> 8.94427191 | E3: =(x-a+2*x*(x^2-b))/SQRT((x-a)^2+(x^2-b)^2) -> -7.602631123 | G3: dx = | H3: =(xMax-xMin)/250 -> 0.032
A4: 1 | B4: =B3+dx -> -3.97 | C4: 15.745024 | D4: 8.702322722 | E4: -7.518970803
A5: 2 | B5: -3.94 | C5: 15.492096 | D5: 8.463072638 | E5: -7.433917019 | G5: First Chart
A6: 3 | B6: -3.90 | C6: 15.241216 | D6: 8.226568249 | E6: -7.3473425 | G6: Vertical Line
A7: 4 | B7: -3.87 | C7: 14.992384 | D7: 7.992860439 | E7: -7.259106065 | H7: =x0 -> 2.688 | I7: =x0^2 -> 7.225344 | J7: =I7+1 -> 8.225344
A8: 5 | B8: -3.84 | C8: 14.7456 | D8: 7.762004854 | E8: -7.169050915 | H8: =a -> 0 | I8: =b -> 8
A9: 6 | B9: -3.81 | C9: 14.500864 | D9: 7.534062433 | E9: -7.077002706
A10: 7 | B10: -3.78 | C10: 14.258176 | D10: 7.309100003 | E10: -6.982767391
A11: 8 | B11: -3.74 | C11: 14.017536 | D11: 7.087190946 | E11: -6.886128783 | G11: Point
A12: 9 | B12: -3.71 | C12: 13.778944 | D12: 6.868415957 | E12: -6.786845839 | G12: =x0 -> 2.688 | H12: 0
A13: 10 | B13: -3.68 | C13: 13.5424 | D13: 6.652863877 | E13: -6.684649622
A14: 11 | B14: -3.65 | C14: 13.307904 | D14: 6.440632645 | E14: -6.579239947 | G14: Second Chart
A15: 12 | B15: -3.62 | C15: 13.075456 | D15: 6.231830358 | E15: -6.470281679 | G15: Vertical Line
A16: 13 | B16: -3.58 | C16: 12.845056 | D16: 6.026576445 | E16: -6.357400717 | H16: =G21 -> 2.688 | I16: 0
A17: 14 | B17: -3.55 | C17: 12.616704 | D17: 5.825002989 | E17: -6.240179667 | H17: =G21 -> 2.688 | I17: =LOOKUP(x0,B3:H253,D3:D253) -> 2.819329069
A18: 15 | B18: -3.52 | C18: 12.3904 | D18: 5.627256184 | E18: -6.118153301
A19: 16 | B19: -3.49 | C19: 12.166144 | D19: 5.433497937 | E19: -5.990803884
A20: 17 | B20: -3.46 | C20: 11.943936 | D20: 5.243907624 | E20: -5.857556584 | G20: Point
A21: 18 | B21: -3.42 | C21: 11.723776 | D21: 5.058683989 | E21: -5.717775238 | G21: =x0 -> 2.688 | H21: 0
A22: 19 | B22: -3.39 | C22: 11.505664 | D22: 4.878047159 | E22: -5.57075889
A23: 20 | B23: -3.36 | C23: 11.2896 | D23: 4.702240759 | E23: -5.415739709 | G23: Point on curve
A24: 21 | B24: -3.33 | C24: 11.075584 | D24: 4.53153406 | E24: -5.25188309 | G24: x= | H24: =G12*H5 -> 0
A25: 22 | B25: -3.30 | C25: 10.863616 | D25: 4.366224066 | E25: -5.078291067 | F25: x0 = | G25: =x0 -> 2.688 | H25: =LOOKUP(x0,B3:B84,C3:C84) -> 1.982464 | I25: =LOOKUP(x0+0.0001,B3:B253,E3:E253) -> -0.5278300132
A26: 23 | B26: -3.26 | C26: 10.653696 | D26: 4.206637429 | E26: -4.894010438 | G26: =x0 -> 2.688 | H26: 0 | I26: 0
A27: 24 | B27: -3.23 | C27: 10.445824 | D27: 4.053132004 | E27: -4.698047416
A28: 25 | B28: -3.20 | C28: 10.24 | D28: 3.906097797 | E28: -4.489390924
A29: 26 | B29: -3.17 | C29: 10.036224 | D29: 3.765957007 | E29: -4.267046924
A30: 27 | B30: -3.14 | C30: 9.834496 | D30: 3.633162751 | E30: -4.030086158
A31: 28 | B31: -3.10 | C31: 9.634816 | D31: 3.508196026 | E31: -3.777707298
A32: 29 | B32: -3.07 | C32: 9.437184 | D32: 3.391560386 | E32: -3.509316404
A33: 30 | B33: -3.04 | C33: 9.2416 | D33: 3.283773829 | E33: -3.224621594
A34: 31 | B34: -3.01 | C34: 9.048064 | D34: 3.18535746 | E34: -2.923738745
A35: 32 | B35: -2.98 | C35: 8.856576 | D35: 3.096820699 | E35: -2.607299917
A36: 33 | B36: -2.94 | C36: 8.667136 | D36: 3.018643146 | E36: -2.276551562
A37: 34 | B37: -2.91 | C37: 8.479744 | D37: 2.951253684 | E37: -1.933425475
A38: 35 | B38: -2.88 | C38: 8.2944 | D38: 2.895008007 | E38: -1.580563504
A39: 36 | B39: -2.85 | C39: 8.111104 | D39: 2.850166328 | E39: -1.221279035
A40: 37 | B40: -2.82 | C40: 7.929856 | D40: 2.816873476 | E40: -0.8594454144
A41: 38 | B41: -2.78 | C41: 7.750656 | D41: 2.795143723 | E41: -0.4993133615
A42: 39 | B42: -2.75 | C42: 7.573504 | D42: 2.784852391 | E42: -0.1452737737
A43: 40 | B43: -2.72 | C43: 7.3984 | D43: 2.785735551 | E43: 0.1984050495
A44: 41 | B44: -2.69 | C44: 7.225344 | D44: 2.797398062 | E44: 0.5278300132
A45: 42 | B45: -2.66 | C45: 7.054336 | D45: 2.819329069 | E45: 0.8396916819
A46: 43 | B46: -2.62 | C46: 6.885376 | D46: 2.850923124 | E46: 1.131404325
A47: 44 | B47: -2.59 | C47: 6.718464 | D47: 2.891504542 | E47: 1.40116765
A48: 45 | B48: -2.56 | C48: 6.5536 | D48: 2.940352523 | E48: 1.647954782
A49: 46 | B49: -2.53 | C49: 6.390784 | D49: 2.996724901 | E49: 1.871441751
A50: 47 | B50: -2.50 | C50: 6.230016 | D50: 3.059878978 | E50: 2.071898978
A51: 48 | B51: -2.46 | C51: 6.071296 | D51: 3.129088545 | E51: 2.250065222
A52: 49 | B52: -2.43 | C52: 5.914624 | D52: 3.203656826 | E52: 2.407020877
A53: 50 | B53: -2.40 | C53: 5.76 | D53: 3.282925525 | E53: 2.544072333
A54: 51 | B54: -2.37 | C54: 5.607424 | D54: 3.366280427 | E54: 2.662653968
A55: 52 | B55: -2.34 | C55: 5.456896 | D55: 3.453154204 | E55: 2.76425011
A56: 53 | B56: -2.30 | C56: 5.308416 | D56: 3.543027015 | E56: 2.850336458
A57: 54 | B57: -2.27 | C57: 5.161984 | D57: 3.635425534 | E57: 2.922338693
A58: 55 | B58: -2.24 | C58: 5.0176 | D58: 3.729920879 | E58: 2.981605338
A59: 56 | B59: -2.21 | C59: 4.875264 | D59: 3.826125856 | E59: 3.029391769
A60: 57 | B60: -2.18 | C60: 4.734976 | D60: 3.923691848 | E60: 3.066852575
A61: 58 | B61: -2.14 | C61: 4.596736 | D61: 4.02230554 | E61: 3.095039874
A62: 59 | B62: -2.11 | C62: 4.460544 | D62: 4.121685672 | E62: 3.114905688
A63: 60 | B63: -2.08 | C63: 4.3264 | D63: 4.221579913 | E63: 3.127306902
A64: 61 | B64: -2.05 | C64: 4.194304 | D64: 4.321761914 | E64: 3.13301174
A65: 62 | B65: -2.02 | C65: 4.064256 | D65: 4.422028588 | E65: 3.132706976
A66: 63 | B66: -1.98 | C66: 3.936256 | D66: 4.522197618 | E66: 3.12700536
A67: 64 | B67: -1.95 | C67: =x^2 -> 3.810304 | D67: =SQRT((x-a)^2+(x^2-b)^2) -> 4.62210521 | E67: =(x-a+2*x*(x^2-b))/SQRT((x-a)^2+(x^2-b)^2) -> 3.1164529
A68: 65 | B68: =B67+dx -> -1.92 | C68: 3.6864 | D68: 4.721604066 | E68: 3.10153579
A69: 66 | B69: -1.89 | C69: 3.564544 | D69: 4.820561578 | E69: 3.082686864
A70: 67 | B70: -1.86 | C70: 3.444736 | D70: 4.918858212 | E70: 3.060291498
A71: 68 | B71: -1.82 | C71: 3.326976 | D71: 5.01638608 | E71: 3.034692966
A72: 69 | B72: -1.79 | C72: 3.211264 | D72: 5.11304767 | E72: 3.006197246
A73: 70 | B73: -1.76 | C73: 3.0976 | D73: 5.208754723 | E73: 2.975077312
A74: 71 | B74: -1.73 | C74: 2.985984 | D74: 5.303427236 | E74: 2.941576947
A75: 72 | B75: -1.70 | C75: 2.876416 | D75: 5.396992589 | E75: 2.905914112
A76: 73 | B76: -1.66 | C76: 2.768896 | D76: 5.489384761 | E76: 2.868283933
A77: 74 | B77: -1.63 | C77: 2.663424 | D77: 5.580543648 | E77: 2.828861319
A78: 75 | B78: -1.60 | C78: 2.56 | D78: 5.670414447 | E78: 2.787803281
A79: 76 | B79: -1.57 | C79: 2.458624 | D79: 5.758947124 | E79: 2.745250963
A80: 77 | B80: -1.54 | C80: 2.359296 | D80: 5.846095929 | E80: 2.701331432
A81: 78 | B81: -1.50 | C81: 2.262016 | D81: 5.931818978 | E81: 2.656159254
A82: 79 | B82: -1.47 | C82: 2.166784 | D82: 6.016077867 | E82: 2.60983788
A83: 80 | B83: -1.44 | C83: 2.0736 | D83: 6.098837345 | E83: 2.562460862
A84: 81 | B84: -1.41 | C84: 1.982464 | D84: 6.180065009 | E84: 2.514112935
A85: 82 | B85: -1.38 | C85: 1.893376 | D85: 6.259731039 | E85: 2.464870959
A86: 83 | B86: -1.34 | C86: 1.806336 | D86: 6.337807961 | E86: 2.41480476
A87: 84 | B87: -1.31 | C87: 1.721344 | D87: 6.414270431 | E87: 2.363977869
A88: 85 | B88: -1.28 | C88: 1.6384 | D88: 6.489095049 | E88: 2.312448174
A89: 86 | B89: -1.25 | C89: 1.557504 | D89: 6.562260183 | E89: 2.260268505
A90: 87 | B90: -1.22 | C90: 1.478656 | D90: 6.633745817 | E90: 2.207487144
A91: 88 | B91: -1.18 | C91: 1.401856 | D91: 6.703533415 | E91: 2.154148282
A92: 89 | B92: -1.15 | C92: 1.327104 | D92: 6.771605794 | E92: 2.100292429
A93: 90 | B93: -1.12 | C93: 1.2544 | D93: 6.837947014 | E93: 2.045956772
A94: 91 | B94: -1.09 | C94: 1.183744 | D94: 6.902542275 | E94: 1.991175499
A95: 92 | B95: -1.06 | C95: 1.115136 | D95: 6.965377829 | E95: 1.935980086
A96: 93 | B96: -1.02 | C96: 1.048576 | D96: 7.026440893 | E96: 1.880399558
A97: 94 | B97: -0.99 | C97: 0.984064 | D97: 7.085719579 | E97: 1.824460717
A98: 95 | B98: -0.96 | C98: 0.9216 | D98: 7.143202822 | E98: 1.768188348
A99: 96 | B99: -0.93 | C99: 0.861184 | D99: 7.198880321 | E99: 1.711605409
A100: 97 | B100: -0.90 | C100: 0.802816 | D100: 7.252742483 | E100: 1.654733193
A101: 98 | B101: -0.86 | C101: 0.746496 | D101: 7.304780372 | E101: 1.597591484
A102: 99 | B102: -0.83 | C102: 0.692224 | D102: 7.354985661 | E102: 1.540198688
A103: 100 | B103: -0.80 | C103: 0.64 | D103: 7.403350593 | E103: 1.48257196
A104: 101 | B104: -0.77 | C104: 0.589824 | D104: 7.449867942 | E104: 1.424727313
A105: 102 | B105: -0.74 | C105: 0.541696 | D105: 7.494530976 | E105: 1.366679719
A106: 103 | B106: -0.70 | C106: 0.495616 | D106: 7.537333429 | E106: 1.3084432
A107: 104 | B107: -0.67 | C107: 0.451584 | D107: 7.578269467 | E107: 1.250030913
A108: 105 | B108: -0.64 | C108: 0.4096 | D108: 7.617333665 | E108: 1.191455226
A109: 106 | B109: -0.61 | C109: 0.369664 | D109: 7.654520983 | E109: 1.132727782
A110: 107 | B110: -0.58 | C110: 0.331776 | D110: 7.689826741 | E110: 1.073859571
A111: 108 | B111: -0.54 | C111: 0.295936 | D111: 7.723246605 | E111: 1.014860982
A112: 109 | B112: -0.51 | C112: 0.262144 | D112: 7.754776559 | E112: 0.9557418564
A113: 110 | B113: -0.48 | C113: 0.2304 | D113: 7.784412898 | E113: 0.8965115407
A114: 111 | B114: -0.45 | C114: 0.200704 | D114: 7.812152206 | E114: 0.8371789288
A115: 112 | B115: -0.42 | C115: 0.173056 | D115: 7.837991348 | E115: 0.7777525053
A116: 113 | B116: -0.38 | C116: 0.147456 | D116: 7.861927453 | E116: 0.7182403839
A117: 114 | B117: -0.35 | C117: 0.123904 | D117: 7.883957902 | E117: 0.658650344
A118: 115 | B118: -0.32 | C118: 0.1024 | D118: 7.904080323 | E118: 0.5989898643
A119: 116 | B119: -0.29 | C119: 0.082944 | D119: 7.922292579 | E119: 0.5392661548
A120: 117 | B120: -0.26 | C120: 0.065536 | D120: 7.938592757 | E120: 0.4794861866
A121: 118 | B121: -0.22 | C121: 0.050176 | D121: 7.952979167 | E121: 0.4196567201
A122: 119 | B122: -0.19 | C122: 0.036864 | D122: 7.96545033 | E122: 0.3597843318
A123: 120 | B123: -0.16 | C123: 0.0256 | D123: 7.976004975 | E123: 0.2998754398
A124: 121 | B124: -0.13 | C124: 0.016384 | D124: 7.984642036 | E124: 0.2399363287
A125: 122 | B125: -0.10 | C125: 0.009216 | D125: 7.991360644 | E125: 0.1799731725
A126: 123 | B126: -0.06 | C126: 0.004096 | D126: 7.996160127 | E126: 0.1199920583
A127: 124 | B127: -0.03 | C127: 0.001024 | D127: 7.999040008 | E127: 0.05999900782
A128: 125 | B128: 0.00 | C128: 1.109335648e-29 | D128: 8 | E128: -6.245004514e-15
A129: 126 | B129: 0.03 | C129: 0.001024 | D129: 7.999040008 | E129: -0.05999900782
A130: 127 | B130: 0.06 | C130: 0.004096 | D130: 7.996160127 | E130: -0.1199920583
A131: 128 | B131: 0.10 | C131: =x^2 -> 0.009216 | D131: =SQRT((x-a)^2+(x^2-b)^2) -> 7.991360644 | E131: =(x-a+2*x*(x^2-b))/SQRT((x-a)^2+(x^2-b)^2) -> -0.1799731725
A132: 129 | B132: =B131+dx -> 0.13 | C132: 0.016384 | D132: 7.984642036 | E132: -0.2399363287
A133: 130 | B133: 0.16 | C133: 0.0256 | D133: 7.976004975 | E133: -0.2998754398
A134: 131 | B134: 0.19 | C134: 0.036864 | D134: 7.96545033 | E134: -0.3597843318
A135: 132 | B135: 0.22 | C135: 0.050176 | D135: 7.952979167 | E135: -0.4196567201
A136: 133 | B136: 0.26 | C136: 0.065536 | D136: 7.938592757 | E136: -0.4794861866
A137: 134 | B137: 0.29 | C137: 0.082944 | D137: 7.922292579 | E137: -0.5392661548
A138: 135 | B138: 0.32 | C138: 0.1024 | D138: 7.904080323 | E138: -0.5989898643
A139: 136 | B139: 0.35 | C139: 0.123904 | D139: 7.883957902 | E139: -0.658650344
A140: 137 | B140: 0.38 | C140: 0.147456 | D140: 7.861927453 | E140: -0.7182403839
A141: 138 | B141: 0.42 | C141: 0.173056 | D141: 7.837991348 | E141: -0.7777525053
A142: 139 | B142: 0.45 | C142: 0.200704 | D142: 7.812152206 | E142: -0.8371789288
A143: 140 | B143: 0.48 | C143: 0.2304 | D143: 7.784412898 | E143: -0.8965115407
A144: 141 | B144: 0.51 | C144: 0.262144 | D144: 7.754776559 | E144: -0.9557418564
A145: 142 | B145: 0.54 | C145: 0.295936 | D145: 7.723246605 | E145: -1.014860982
A146: 143 | B146: 0.58 | C146: 0.331776 | D146: 7.689826741 | E146: -1.073859571
A147: 144 | B147: 0.61 | C147: 0.369664 | D147: 7.654520983 | E147: -1.132727782
A148: 145 | B148: 0.64 | C148: 0.4096 | D148: 7.617333665 | E148: -1.191455226
A149: 146 | B149: 0.67 | C149: 0.451584 | D149: 7.578269467 | E149: -1.250030913
A150: 147 | B150: 0.70 | C150: 0.495616 | D150: 7.537333429 | E150: -1.3084432
A151: 148 | B151: 0.74 | C151: 0.541696 | D151: 7.494530976 | E151: -1.366679719
A152: 149 | B152: 0.77 | C152: 0.589824 | D152: 7.449867942 | E152: -1.424727313
A153: 150 | B153: 0.80 | C153: 0.64 | D153: 7.403350593 | E153: -1.48257196
A154: 151 | B154: 0.83 | C154: 0.692224 | D154: 7.354985661 | E154: -1.540198688
A155: 152 | B155: 0.86 | C155: 0.746496 | D155: 7.304780372 | E155: -1.597591484
A156: 153 | B156: 0.90 | C156: 0.802816 | D156: 7.252742483 | E156: -1.654733193
A157: 154 | B157: 0.93 | C157: 0.861184 | D157: 7.198880321 | E157: -1.711605409
A158: 155 | B158: 0.96 | C158: 0.9216 | D158: 7.143202822 | E158: -1.768188348
A159: 156 | B159: 0.99 | C159: 0.984064 | D159: 7.085719579 | E159: -1.824460717
A160: 157 | B160: 1.02 | C160: 1.048576 | D160: 7.026440893 | E160: -1.880399558
A161: 158 | B161: 1.06 | C161: 1.115136 | D161: 6.965377829 | E161: -1.935980086
A162: 159 | B162: 1.09 | C162: 1.183744 | D162: 6.902542275 | E162: -1.991175499
A163: 160 | B163: 1.12 | C163: 1.2544 | D163: 6.837947014 | E163: -2.045956772
A164: 161 | B164: 1.15 | C164: 1.327104 | D164: 6.771605794 | E164: -2.100292429
A165: 162 | B165: 1.18 | C165: 1.401856 | D165: 6.703533415 | E165: -2.154148282
A166: 163 | B166: 1.22 | C166: 1.478656 | D166: 6.633745817 | E166: -2.207487144
A167: 164 | B167: 1.25 | C167: 1.557504 | D167: 6.562260183 | E167: -2.260268505
A168: 165 | B168: 1.28 | C168: 1.6384 | D168: 6.489095049 | E168: -2.312448174
A169: 166 | B169: 1.31 | C169: 1.721344 | D169: 6.414270431 | E169: -2.363977869
A170: 167 | B170: 1.34 | C170: 1.806336 | D170: 6.337807961 | E170: -2.41480476
A171: 168 | B171: 1.38 | C171: 1.893376 | D171: 6.259731039 | E171: -2.464870959
A172: 169 | B172: 1.41 | C172: 1.982464 | D172: 6.180065009 | E172: -2.514112935
A173: 170 | B173: 1.44 | C173: 2.0736 | D173: 6.098837345 | E173: -2.562460862
A174: 171 | B174: 1.47 | C174: 2.166784 | D174: 6.016077867 | E174: -2.60983788
A175: 172 | B175: 1.50 | C175: 2.262016 | D175: 5.931818978 | E175: -2.656159254
A176: 173 | B176: 1.54 | C176: 2.359296 | D176: 5.846095929 | E176: -2.701331432
A177: 174 | B177: 1.57 | C177: 2.458624 | D177: 5.758947124 | E177: -2.745250963
A178: 175 | B178: 1.60 | C178: 2.56 | D178: 5.670414447 | E178: -2.787803281
A179: 176 | B179: 1.63 | C179: 2.663424 | D179: 5.580543648 | E179: -2.828861319
A180: 177 | B180: 1.66 | C180: 2.768896 | D180: 5.489384761 | E180: -2.868283933
A181: 178 | B181: 1.70 | C181: 2.876416 | D181: 5.396992589 | E181: -2.905914112
A182: 179 | B182: 1.73 | C182: 2.985984 | D182: 5.303427236 | E182: -2.941576947
A183: 180 | B183: 1.76 | C183: 3.0976 | D183: 5.208754723 | E183: -2.975077312
A184: 181 | B184: 1.79 | C184: 3.211264 | D184: 5.11304767 | E184: -3.006197246
A185: 182 | B185: 1.82 | C185: 3.326976 | D185: 5.01638608 | E185: -3.034692966
A186: 183 | B186: 1.86 | C186: 3.444736 | D186: 4.918858212 | E186: -3.060291498
A187: 184 | B187: 1.89 | C187: 3.564544 | D187: 4.820561578 | E187: -3.082686864
A188: 185 | B188: 1.92 | C188: 3.6864 | D188: 4.721604066 | E188: -3.10153579
A189: 186 | B189: 1.95 | C189: 3.810304 | D189: 4.62210521 | E189: -3.1164529
A190: 187 | B190: 1.98 | C190: 3.936256 | D190: 4.522197618 | E190: -3.12700536
A191: 188 | B191: 2.02 | C191: 4.064256 | D191: 4.422028588 | E191: -3.132706976
A192: 189 | B192: 2.05 | C192: 4.194304 | D192: 4.321761914 | E192: -3.13301174
A193: 190 | B193: 2.08 | C193: 4.3264 | D193: 4.221579913 | E193: -3.127306902
A194: 191 | B194: 2.11 | C194: 4.460544 | D194: 4.121685672 | E194: -3.114905688
A195: 192 | B195: 2.14 | C195: =x^2 -> 4.596736 | D195: =SQRT((x-a)^2+(x^2-b)^2) -> 4.02230554 | E195: =(x-a+2*x*(x^2-b))/SQRT((x-a)^2+(x^2-b)^2) -> -3.095039874
A196: 193 | B196: =B195+dx -> 2.18 | C196: 4.734976 | D196: 3.923691848 | E196: -3.066852575
A197: 194 | B197: 2.21 | C197: 4.875264 | D197: 3.826125856 | E197: -3.029391769
A198: 195 | B198: 2.24 | C198: 5.0176 | D198: 3.729920879 | E198: -2.981605338
A199: 196 | B199: 2.27 | C199: 5.161984 | D199: 3.635425534 | E199: -2.922338693
A200: 197 | B200: 2.30 | C200: 5.308416 | D200: 3.543027015 | E200: -2.850336458
... 53 more rows

Sheet Sheet3
